{"text_format":"1","workbook":"xlsx","n_sheets":2,"sheets":["AACC","Dados"],"not_rendered":{"charts":0,"images":5,"macros":1,"external_links":0,"defined_names":0,"comments":0,"pivot_tables":0},"unopened":[],"bounds":{"document_bytes":16777216,"sheet_cells":100000,"rows_first":2000,"rows_last":500,"rows_between":2000,"halvings":0,"cell_chars":16384,"cell_head_chars":4096},"cells_cut":0,"cells_raw":0,"read":"whole","date_system":"1900"}

{"sheet":"AACC","index":0,"n_rows":37,"n_cols":9,"rows_kept":37,"cut":false,"hidden":false,"merged":[[36,1,37,2],[36,3,37,4],[36,5,37,8],[33,1,34,2],[33,3,34,4],[33,5,34,8],[2,0,4,4],[2,5,4,8],[8,0,8,8],[9,7,9,8],[9,0,10,0],[9,1,10,1],[9,2,10,2],[9,3,10,3],[9,4,10,4],[9,5,10,5],[9,6,10,6],[5,0,6,2],[5,3,6,4],[5,5,6,5],[5,6,6,6]]}
["FACULDADE DE TECNOLOGIA DE ITAQUAQUECETUBA"]
["FICHA DE REGISTRO DAS ATIVIDADES ACADÊMICO-CIENTÍFICO-CULTURAIS"]
["NOME COMPLETO:",null,null,null,null,"RA:"]
[]
[]
["CURSO: ",null,null,"PERÍODO: ",null,"Total de Horas:",{"$f":"D32","v":8}]
[]
["ORIENTADOR: Profª Amanda Fratea de Lucca"]
["DESCRIÇÃO DAS ATIVIDADES                                          Semestre:"]
["ORDEM","DATA","ATIVIDADE","QTDE HORAS","NOME COMPLETO DO PROFESSOR RESPONSÁVEL PELA ATIVIDADE SE HOUVER","ASSINATURA DO PROFESSOR RESPONSÁVEL","HR ACUM","HORAS VALID"]
[null,null,null,null,null,null,null,"SIM","NÃO"]
[1,"2019-02-01","Peça teatral: A dama e o vagabundo",3,"-",null,{"$f":"IF(C12=\"\",\"\",IF(A12=1,D12,D12+G11))","v":3}]
[2,null,"Leitura do Livro: A Secretária no mundo contemporâneo",4,null,null,7]
[3,null,"Exibição de Filme: O diabo veste Prada",1,"Prof. Fábio Barbosa de Lima",null,8]
[4,null,null,null,null,null,""]
[5,null,null,null,null,null,""]
[6,null,null,null,null,null,""]
[7,null,null,null,null,null,""]
[8,null,null,null,null,null,""]
[9,null,null,null,null,null,""]
[10,null,null,null,null,null,""]
[11,null,null,null,null,null,""]
[12,null,null,null,null,null,""]
[13,null,null,null,null,null,""]
[14,null,null,null,null,null,""]
[15,null,null,null,null,null,""]
[16,null,null,null,null,null,""]
[17,null,null,null,null,null,""]
[18,null,null,null,null,null,""]
[19,null,null,null,null,null,""]
[20,null,null,null,null,null,""]
[null,null,"total:",{"$f":"SUM(D12:D31)","v":8}]
[]
[null,"Assinatura do Aluno:",null,null,null,"Data:  _______ / ______ / _______"]
[]
[]
[null,"Assinatura do Prof. Orientador:",null,null,null,"Data:  _______ / ______ / _______"]

{"sheet":"Dados","index":1,"n_rows":20,"n_cols":3,"rows_kept":20,"cut":false,"hidden":false,"merged":[]}
["Cursos"]
[null,"Gestão Comercial"]
[null,"Secretariado"]
["Períodos"]
[null,"Tarde","Manhã"]
[null,"Noite","Noite"]
[]
["Orientadores"]
[null,"Profª Amanda Fratea de Lucca"]
[null,"Prof. José Miguel de Mattos"]
["curso selecionado"]
[null,"Gestão Comercial"]
[]
["semestre"]
[null,"Primeiro"]
[null,"Segundo"]
[null,"Terceiro"]
[null,"Quarto"]
[null,"Quinto"]
[null,"Sexto"]